{"text_format":"1","workbook":"xlsx","n_sheets":3,"sheets":["Hoja1","Hoja2","Hoja3"],"not_rendered":{"charts":0,"images":0,"macros":0,"external_links":0,"defined_names":0,"comments":0,"pivot_tables":0},"unopened":[],"bounds":{"document_bytes":16777216,"sheet_cells":100000,"rows_first":2000,"rows_last":500,"rows_between":2000,"halvings":0,"cell_chars":16384,"cell_head_chars":4096},"cells_cut":0,"cells_raw":0,"read":"whole","date_system":"1900"}

{"sheet":"Hoja1","index":0,"n_rows":31,"n_cols":16,"rows_kept":31,"cut":false,"hidden":false,"merged":[[0,1,0,15],[2,1,2,15]]}
[null,"INSTITUTO TECNOLÓGICO SUPERIOR DE PEROTE"]
[]
[null,"VIÁTICOS EJERCIDOS EN EL MES DE: SEPTIEMBRE 2016"]
[]
["ÁREA","OBJETO O MOTIVO DE LA COMISIÓN","SERV. PÚB. COMISIONADOS","LUGAR DE COMISIÓN","DESTINO DE LA COMISIÓN","FECHA DE INICIO","FECHA DE TERMINO","ORIGEN DEL RECURSO","ALIMENTOS","HOSPEDAJE","PASAJES","PEAJES","TRASLADOS LOCALES","COMBUSTIBLES","IMPORTE EJERCIDO","RESPONSABLE QUE PROPORCIONA LA INFORMACIÓN"]
["ACAD","ASISTIR A CONCURSO NACIONAL DE MATEMATICAS PIERRE FERMAT, FASE FINAL ",3,"NAC.","MEXICO, D.F.","2016-09-03","2016-09-03","FED.",900,null,1950,null,200,null,{"$f":"SUM(I6:N6)","v":3050},"REC. FINANCIEROS"]
["ADMO","ASISTIR A LA SECRETARIA DE INFRAESTRUCTURA Y OBRAS PUBLICAS ",1,"EDO.","XALAPA, VER.","2016-09-08","2016-09-08","FED.",300,null,null,248,null,200,{"$f":"SUM(I7:N7)","v":748},"REC. FINANCIEROS"]
["ACAD","ASISTIR A CURSO DE ELABORACION DE PROYECTOS DE INVESTIGACION ",2,"EDO.","XALAPA, VER.","2016-09-07","2016-09-09","FED.",1800,null,null,708,null,null,{"$f":"SUM(I8:N8)","v":2508},"REC. FINANCIEROS"]
["PYV","ASISTIR A ENTREGA DE INVITACIONES PARA EVENTO DE ENTREGA DE CARTAS PASANTES ",1,"EDO.","XALAPA, VER.","2016-09-08","2016-09-08","FED.",null,null,null,null,null,200,{"$f":"SUM(I9:N9)","v":200},"REC. FINANCIEROS"]
["ACAD","ASISTIR A REUNION DE TRABAJO ",1,"EDO.","XALAPA, VER.","2016-09-13","2016-09-13","FED.",300,null,null,248,null,200,{"$f":"SUM(I10:N10)","v":748},"REC. FINANCIEROS"]
["ACAD","ASISTIR A TALLER DE CAPACITACION CESMO CUARTO MODULO",1,"EDO.","XALAPA, VER.","2016-09-13","2016-09-13","FED.",300,null,null,null,100,null,400,"REC. FINANCIEROS"]
["PYV","ASISTIR A FIRMA DE CONVENIO EN EL INSTITUTO TECNOLOGICO SUPERIOR DE XALAPA ",1,"EDO.","XALAPA, VER.","2016-09-19","2016-09-19","FED.",null,null,null,248,null,200,448,"REC. FINANCIEROS"]
["PYV","ASISTIR A ENTREGA DE DOCUMENTACION DE JUNTA DIRECTIVA ",2,"EDO.","XALAPA, VER.","2016-09-20","2016-09-20","FED.",690,null,null,248,null,300,1238,"REC. FINANCIEROS"]
["ACAD","ASISTIR A EVENTO \"FERIA NACIONAL DE CIENCIAS E INGENIERIAS 2016\"",2,"EDO.","XALAPA, VER.","2016-09-19","2016-09-19","FED.",300,null,null,124,null,200,624,"REC. FINANCIEROS"]
["ACAD","ASISTIR A EVENTO \"FERIA NACIONAL DE CIENCIAS E INGENIERIAS 2016\"",6,"EDO.","XALAPA, VER.","2016-09-19","2016-09-19","FED.",1560,null,null,496,null,400,2456,"REC. FINANCIEROS"]
["ACAD","ASISTIR A TALLER DE CAPACITACION CESMO CUARTO MODULO",1,"EDO.","XALAPA, VER.","2016-09-20","2016-09-20","FED.",300,null,null,null,100,null,400,"REC. FINANCIEROS"]
["ADMO","ASISTIR A ENTREGA DE DOCUMENTACION",1,"NAC.","MEXICO, D.F.","2016-09-22","2016-09-22","FED.",300,null,568,null,150,null,1018,"REC. FINANCIEROS"]
["ACAD","ASISTIR A ENTREGA DE DOCUMENTACION DE CUERPO ACADEMICO EN PRODEP",1,"NAC.","MEXICO, D.F.","2016-09-22","2016-09-22","FED.",360,null,818,null,null,null,1178,"REC. FINANCIEROS"]
["ACAD","ASISTIR A REUNION DE TRABAJO PARA PROYECTOS ",1,"NAC.","MEXICO, D.F.","2016-09-22","2016-09-22","FED.",360,null,552,null,100,null,1012,"REC. FINANCIEROS"]
["ACAD","ASISTIR A VISITA INDUSTRIAL EN LA EMPRESA SABORMEX ",2,"NAC.","PUEBLA, PUE.","2016-09-23","2016-09-23","FED.",600,null,null,null,null,null,600,"REC. FINANCIEROS"]
["PYV","ASISTIR A LA REUNION DE SERVICIOS ESCOLARES ",1,"EDO.","XALAPA, VER.","2016-09-27","2016-09-27","FED.",300,null,null,248,null,200,748,"REC. FINANCIEROS"]
["PYV","ASISTIR A ENTREGA DE TITULOS PROFESIONALES EN MEXICO ",1,"NAC.","MEXICO, D.F.","2016-09-27","2016-09-27","FED.",300,null,600,null,200,null,1100,"REC. FINANCIEROS"]
["ACAD","ASISTIR A TALLER DE CAPACITACION CESMO CUARTO MODULO",1,"EDO.","XALAPA, VER.","2016-09-27","2016-09-27","FED.",300,null,null,null,100,null,400,"REC. FINANCIEROS"]
["PYV","ASISTIR A TERCERA SESION DE JUNTA DIRECTIVA ",11,"EDO.","XALAPA, VER.","2016-09-28","2016-09-28","FED.",{"$f":"360*6+1500","v":3660},null,null,1736,null,{"$f":"200*7","v":1400},6796,"REC. FINANCIEROS"]
[]
["PyV","DIRECCIÓN DE PLANEACIÓN Y VINCULACIÓN"]
["ACAD.","DIRECCIÓN ACADÉMICA"]
["SIND.","SINDICATO"]
["ADMO.","SUBDIRECCIÓN ADMINISTRATIVA"]
["FED. ","RECURSO FEDERAL"]
["I.P.","INGRESOS PROPIOS"]

{"sheet":"Hoja2","index":1,"n_rows":0,"n_cols":0,"rows_kept":0,"cut":false,"hidden":false,"merged":[]}

{"sheet":"Hoja3","index":2,"n_rows":0,"n_cols":0,"rows_kept":0,"cut":false,"hidden":false,"merged":[]}